Cogmind - Beta 16.1 @@@ ROGUE MODE // 2026.04.23 @ 00:21:30 Player: Thqwib-Linux Result: Destroyed by G-47 Trooper with Particle Gun Performance ------------- Evolutions (0) 0 Regions Visited (2) 400 Robots Destroyed (16) 80 Value Destroyed (260) 260 Prototype IDs (4) 80 Alien Tech Used (0) 0 Bonus (0) 0 TOTAL SCORE: 820 Bonus ------- None Cogmind --------- Core Integrity 0/250 Matter 290/300 Energy 124/125 System Corruption 0% Temperature Cool (9) Movement Rolling (130) Ox2 Location -10/Mines Parts ------- > --- POWER (1) -------- Light Ion Engine > --- PROPULSION (2) --- Light Treads Compact Wheel > --- UTILITY (2) ------ Heat Sink High-capacity Storage Unit > --- WEAPON (2) ------- Medium Laser > --- INVENTORY (20) --- Ion Engine Light Treads Compact Wheel Rocket Launcher Peak State ------------ > --- POWER ------------ Ion Engine > --- PROPULSION ------- Light Treads Compact Wheel > --- UTILITY ---------- Small Storage Unit Seismic Detector > --- WEAPON ----------- Medium Laser Assault Rifle > --- INVENTORY -------- Ion Engine Light Treads Wheel Medium Laser [Rating: 7] Favorites ----------- Power Ion Engine Engine Ion Engine Propulsion Light Treads Treads Light Treads Leg Aluminum Leg Wheel Compact Wheel Utility High-capacity Storage Unit Device Heat Sink Storage High-capacity Storage Unit Processor Targeting Computer Weapon Assault Rifle Energy Gun Small Laser Ballistic Gun Assault Rifle Launcher Grenade Launcher Build | -11 -10 -10 ------- Run | Yrd Mat Min Slots Evolved . | . . . Power . | . . . Propulsion . | . . . Utility . | . . . Weapon . | . . . Parts Attached 16 | 3 6 7 Power 1 | . . 1 Engine 1 | . . 1 Core . | . . . Reactor . | . . . Propulsion 7 | 2 1 4 Treads 4 | 1 . 3 Leg . | . . . Wheel 3 | 1 1 1 Hover . | . . . Flight . | . . . Utility 4 | . 4 . Device 2 | . 2 . Storage 1 | . 1 . Processor 1 | . 1 . Hackware . | . . . Protection . | . . . Artifact . | . . . Weapon 4 | 1 1 2 Energy Gun 2 | . 1 1 Energy Cannon . | . . . Ballistic Gun 1 | 1 . . Ballistic Cannon . | . . . Launcher 1 | . . 1 Special Weapon . | . . . Impact Weapon . | . . . Slashing Weapon . | . . . Piercing Weapon . | . . . Special Melee Weapon . | . . . Unidentified Prototypes . | . . . Parts Lost 9 | . . 9 Power 1 | . . 1 Propulsion 4 | . . 4 Utility 1 | . . 1 Weapon 3 | . . 3 Highest Loss Streak 6 | . . 6 To Critical Strikes . | . . . Average Backups 5 | 6 6 4 Power 1 | 1 1 1 Propulsion 2 | 4 3 2 Utility . | . . . Weapon 1 | 1 1 . Tool/Special . | . . . Unused Backups 3 | . 3 . Power . | . . . Propulsion . | . . . Utility 1 | . 1 . Weapon 2 | . 2 . Tool/Special . | . . . Average Slot Usage (%) 94 | . 98 81 Engine 12 | . 14 7 Treads 14 | . 14 14 Wheel 13 | . 14 11 Device 10 | . 11 8 Storage 14 | . 14 14 Processor 2 | . 1 3 Energy Gun 14 | . 14 17 Ballistic Gun 10 | . 14 . Peak Build Rating 7 | 6 7 7 Average Rating 6 | 6 6 5 On Entrance 6 | 6 6 7 Avg Prop Armor Cover (%) 12 | . 12 15 Naked Turns . | . . . Heaviest Build 50 | 14 50 49 Greatest Support 40 | 20 16 40 Greatest Overweight (x) 3 | . 3 3 Average Overweight (x) 2 | . 1 2 Largest Inventory Capacity 20 | 8 20 20 Average Capacity 17 | 8 17 20 Most Carried 8 | 6 8 8 Average Carried 5 | 5 6 4 Final Capacity 20 | 8 20 20 Final Carried 8 | 4 8 4 Class Distribution -------------------- 100% | Mutant Dominant Class ---------------- Mutant | -10/Materials Mutant | -10/Mines Resources | -11 -10 -10 ----------- Run | Yrd Mat Min Matter Collected 455 | 192 145 118 Remotely . | . . . Salvage Created 464 | . 276 188 Parts 29 | . 26 3 Haulers Intercepted 2 | . 2 . Recyclers Shooed 1 | . . 1 Parts Field Recycled . | . . . Retrieved Matter . | . . . Parts Self-Destructed . | . . . Prevented . | . . . Parts Restored . | . . . Kills | -11 -10 -10 ------- Run | Yrd Mat Min Combat Hostiles Destroyed 12 | . 7 5 Guns 10 | . 7 3 AOE 2 | . . 2 Classes Destroyed 9 | . 6 3 Worker 1 | . 1 . Builder 1 | . 1 . Hauler 2 | . 2 . Recycler 1 | . . 1 Watcher 1 | . 1 . Swarmer 6 | . 6 . Grunt 3 | . 1 2 Demolisher 1 | . . 1 Assembled 2 | . . 2 Best Kill Streak 4 | . 4 3 Combat Bots Only 3 | . 3 3 Max Kills in Single Turn 2 | . 2 1 Gunslinging 1 | . 1 . Exploded 1 | . . 1 Melee . | . . . Uniques/NPCs Destroyed . | . . . Combat | -11 -10 -10 -------- Run | Yrd Mat Min Hostile Shots Fired 56 | . 18 38 Missed 8 | . 1 7 Hits 48 | . 17 31 Projectile 48 | . 17 31 AOE 17 | . . 17 Damage Taken 1098 | . 158 940 Core 261 | . 8 253 Absorbed by Shields . | . . . Core Remaining (%) 100 | 100 . . Volleys Fired 43 | . 19 24 Largest 2 | . 2 2 Hottest 90 | . 70 90 Shots Fired 68 | . 38 30 Gun 63 | . 38 25 Cannon . | . . . Launcher 5 | . . 5 Special . | . . . Kinetic 20 | . 19 1 Thermal 43 | . 19 24 Explosive 5 | . . 5 Electromagnetic . | . . . Robot Hit Streak 5 | . 5 5 Robot Miss Streak 5 | . 2 5 Penetration Max . | . . . Secondary Targets 2 | . 2 . Max Gunslinging Chain 1 | . 1 . Shots Hit Robots 42 | . 24 18 Core Hits 29 | . 15 14 Critical Kills . | . . . Critical Parts Destroyed . | . . . Critical Strikes 1 | . . 1 Burn 1 | . . 1 Melee Attacks . | . . . Impact . | . . . Slashing . | . . . Piercing . | . . . Sneak Attacks . | . . . Combat Hostiles . | . . . Follow-up Attacks . | . . . Damage Inflicted 707 | . 314 393 Guns 498 | . 314 184 Cannons . | . . . Explosions 209 | . . 209 Melee . | . . . Ramming . | . . . Kinetic 185 | . 173 12 Thermal 313 | . 141 172 Explosive 209 | . . 209 Electromagnetic . | . . . Impact . | . . . Slashing . | . . . Piercing . | . . . Highest Corruption . | . . . Average Corruption . | . . . Corruption Purged . | . . . Corruption Blocked . | . . . Overload Shots . | . . . Overflow Damage 5 | . . 5 Projectiles . | . . . Explosions 5 | . . 5 Melee . | . . . Knockbacks . | . . . Impact . | . . . Kinetic . | . . . Secondary . | . . . Self-Inflicted Damage 30 | . . 30 Shots 1 | . . 1 Rammed . | . . . Targets Rammed . | . . . Kicked . | . . . Crushed . | . . . Highest Temperature 66 | . 66 1 Average Temperature 32 | . 36 1 Received Heat Transfer 51 | . 30 21 Siege Activations . | . . . Martial Activations . | . . . Shielding Activations . | . . . Robots Disrupted . | . . . Combat Hostiles . | . . . Robots Corrupted . | . . . Combat Hostiles . | . . . Parts Fried . | . . . Impact Corruptions . | . . . Robots Melted . | . . . Combat Hostiles . | . . . Parts Melted 2 | . . 2 Heat Transferred 903 | . 371 532 Parts Sabotaged . | . . . Parts Stolen . | . . . Parts Stripped . | . . . Power Chain Reactions . | . . . Alert | -11 -10 -10 ------- Run | Yrd Mat Min Maximum Alert Level . | . . . Low Security (%) 100 | 100 100 100 Level 1 . | . . . Level 2 . | . . . Level 3 . | . . . Level 4 . | . . . Level 5 . | . . . High Security . | . . . Max Security . | . . . Peak Influence 70 | . 70 63 Initial . | . . . Average 17 | . 21 8 Influence Increases 353 | . 243 110 Destroy 0b10 Robot/C 200 | . 140 60 Destroy 0b10 Robot/NC 30 | . 25 5 Destroy Leader 56 | . 36 20 Successful Hack 42 | . 42 . Destroy Structure 25 | . . 25 Influence Decreases 353 | . 243 110 Time Decay 293 | . 243 50 Lost Part 60 | . . 60 Squads Dispatched 1 | . 1 . Investigation 1 | . 1 . Extermination . | . . . Reinforcement . | . . . Assault . | . . . Garrison . | . . . Intercept . | . . . Searches Triggered . | . . . Construction Impeded . | . . . Haulers Reinforced . | . . . Active Scanning Responses . | . . . Cargo Convoy Interrupts . | . . . Stealth | -11 -10 -10 --------- Run | Yrd Mat Min Distress Signals . | . . . Communications Jammed . | . . . Distress Signals . | . . . Times Spotted 22 | . 11 11 Peak Tracking Total 4 | . 4 3 Tactical Retreats 1 | . . 1 Traps | -11 -10 -10 ------- Run | Yrd Mat Min Traps Triggered 1 | . 1 . Indirectly . | . . . Trap Hack Attempts . | . . . Triggered . | . . . Disarmed . | . . . Reprogrammed . | . . . Reused . | . . . Traps Extracted . | . . . Installed . | . . . Triggered . | . . . Machines | -11 -10 -10 ---------- Run | Yrd Mat Min Machines Disabled . | . . . Max in Single Turn . | . . . Machines Repaired . | . . . Machines Dismantled . | . . . Machines Sabotaged . | . . . Overloaded Fab Kills . | . . . Hacking | -11 -10 -10 --------- Run | Yrd Mat Min Machines Accessed 7 | . 7 . Terminals 7 | . 7 . Fabricators . | . . . Repair Stations . | . . . Recycling Units . | . . . Scanalyzers . | . . . Garrison Access . | . . . Total Hacks 25 | . 25 . Successful 17 | . 17 . Failed 7 | . 7 . Catastrophic . | . . . Database Lockouts 1 | . 1 . Manual 17 | . 17 . Terminals 25 | . 25 . Fabricators . | . . . Repair Stations . | . . . Recycling Units . | . . . Scanalyzers . | . . . Garrison Access . | . . . Terminal Hacks 10 | . 10 . Robot Analysis 2 | . 2 . Prototype ID Bank 2 | . 2 . Locate Traps 3 | . 3 . Disarm Traps 1 | . 1 . Hauler Manifests 1 | . 1 . Zone Layout 1 | . 1 . Fabricator Hacks . | . . . Repair Station Hacks . | . . . Recycling Unit Hacks . | . . . Scanalyzer . | . . . Garrison Access Hacks . | . . . Unauthorized Hacks 7 | . 7 . Terminals 7 | . 7 . Botnet 7 | . 7 . Fabricators . | . . . Repair Stations . | . . . Recycling Units . | . . . Scanalyzers . | . . . Garrison Access . | . . . Data Cores Recovered . | . . . Used . | . . . Hacking Detections 5 | . 5 . Full Trace Events . | . . . Feedback Events . | . . . Feedback Blocked . | . . . Robot Schematics Acquired . | . . . Robots Built . | . . . Authchips . | . . . Time . | . . . Total Robot Build Rating . | . . . Part Schematics Acquired . | . . . Parts Built . | . . . Authchips . | . . . Time . | . . . Total Part Build Rating . | . . . Part Studies Acquired . | . . . Parts Repaired . | . . . Time . | . . . Parts Recycled . | . . . Recycled Matter . | . . . Retrieved Matter . | . . . Retrieved Components . | . . . Parts Scanalyzed . | . . . Part Schematics Acquired . | . . . Parts Damaged . | . . . Bothacking | -11 -10 -10 ------------ Run | Yrd Mat Min Used RIF Installer . | . . . Robots Hacked . | . . . Non-combat . | . . . Combat . | . . . Robot Hacks Applied . | . . . Relay Couplers Released . | . . . Fabnet Peak Effective % . | . . . Robots Rewired . | . . . Allies Hacked . | . . . Hacks Repelled . | . . . Allies | -11 -10 -10 -------- Run | Yrd Mat Min Total Allies . | . . . Largest Group . | . . . Highest-Rated Group . | . . . Highest-Rated Ally . | . . . Total Orders . | . . . Ally Attacks . | . . . Total Damage . | . . . Kills . | . . . Allies Corrupted . | . . . Allies Melted . | . . . Intel | -11 -10 -10 ------- Run | Yrd Mat Min Active Infowar (turns) 71 | . 71 . Seismic 71 | . 71 . Robot Analysis Total 2 | . 2 . Derelict Logs Recovered . | . . . Drone Launches . | . . . Drone Recoveries . | . . . Exploration | -11 -10 -10 ------------- Run | Yrd Mat Min Turns Passed 894 | 6 658 230 Spaces Moved 552 | 1 445 106 Core . | . . . Treads 12 | 1 . 11 Legs . | . . . Wheels 540 | . 445 95 Hover . | . . . Flight . | . . . Fastest Speed 100 | 160 100 130 Average Speed 132 | 160 129 145 Slowest Speed 240 | 160 145 240 Overloaded Moves . | . . . Propulsion Burnouts . | . . . Robots Hopped . | . . . Potential Cave-ins . | . . . Cave-ins Triggered . | . . . Exploration Rate (%) 35 | 2 80 24 Regions Visited 2 Branch Regions 1 Pre-discovered Areas . | . . . Known Exits Taken . | . . . Unknown Exits Taken 2 | 1 1 . Scrap Searched . | . . . Spaces Dug . | . . . Terrain Destroyed 42 | . . 42 Melee . | . . . Projectile . | . . . AOE 42 | . . 42 Terrain Rammed . | . . . Walls Destroyed . | . . . Machines Disabled . | . . . Actions | -11 -10 -10 --------- Run | Yrd Mat Min Total 644 | 6 487 151 Wait 17 | . 10 7 Move 550 | . 444 106 Hop . | . . . Pick Up 6 | . 3 3 Fast Attach 4 | . 3 1 Attach 8 | 1 . 7 Detach 3 | 1 2 . Swap 8 | 2 3 3 Drop 5 | 2 3 . Fire 43 | . 19 24 Melee . | . . . Ram . | . . . Kick . | . . . Crush . | . . . Escape Stasis . | . . . Rewire . | . . . Trap . | . . . Miscellaneous . | . . . Route ------- -11/Scrapyard -10/Materials (discovered 3 exits: [*Mat x2] / [*Min]) -10/Mines History --------- Turn | Location | Event 7 | -11/Scrapyard | Discovered new exit (range 0) 7 | -11/Scrapyard | Entered Materials 24 | -10/Materials | Central database locked down 295 | -10/Materials | Discovered new exit (range 13) 303 | -10/Materials | Build established: Mutant 390 | -10/Materials | Discovered new exit (range 6) 512 | -10/Materials | Discovered new exit (range 16) 665 | -10/Materials | Entered Mines 668 | -10/Mines | Assembled infested the area 673 | -10/Mines | Assisted by a Guerilla fighting off Assembled 730 | -10/Mines | Core integrity fell below 50% 760 | -10/Mines | Lost 6 parts (1p2n1u2w) 799 | -10/Mines | Core integrity fell below 20% 851 | -10/Mines | Lost 3 parts (2n1w) 883 | -10/Mines | Received a Rocket Launcher from a helpful Derelict 895 | -10/Mines | Destroyed by G-47 Trooper with Particle Gun Last Messages --------------- 00877_ A derelict emerges from the shadows. 00878_ QY-35U(g): "Some of my friends down here think you need a mining laser when you travel the depths." 00878_ K-01 Serf collects debris. 00879_ QY-35U(g): "You know what I say? NO!" 00880_ QY-35U(g): "Everyone knows a good old rocket launcher goes a long way." 00881_ QY-35U(g): "Need to get rid of a swarm? Done. Need a big hole in the wall? Done." 00882_ QY-35U(g): "Need a small hole in the wall? Leave that to the mining laser wimps, I say!" 00882_ K-01 Serf collects debris. 00883_ QY-35U(g): "Would you like a rocket launcher? I know I would if I were you, so I'm going to lend you mine." 00883_ QY-35U(g) slips back into the shadows. 00886_ Acquired Rocket Launcher. 00887_ K-01 Serf collects debris. Map ----- +----------------------------------------------------+ | ????? ## #### # # # # #????????? | | ?????? ! # # # #????????? | | ???????? ##### # #????????? | | ????????????????# # ### ###????????? | | ????????????????# # ##???? #??????????? | | ????????????????# ##???????? #???????????? | | ????????????????### # ####??????????????????????? | | ??????????????????### #?????????????????????????? | | ????????????????????# #?????????????????????????? | | ????????????????????# #?????????????????????????? | | ????????????????????# #?????????????????????????? | | ????????????????????# #?????????????????????????? | | ????????????????????# #?????????????????????????? | | ????????????????????# #?????????????????????????? | | ???????????????????## ##?####???????????????????? | | ??????????????????## ### ##?########?????????? | | ?????????????????## *%! !!### ##????????? | | ?????????????????# % %%! ###??????? | | ????????????????## ### ## ##?????? | | ???????????????## ######?## #### ##????? | | ??????????????## ##???????####??### #????? | | ??????????????# ##???????????????## #???? | | ??????????????# ##????????????????# #???? | | ??????????????# #########?????????# ##???? | | ??????????????#% #??????????####????? | | ???????# @ #??????????????????? | | ??????# #### ???????????? | | ?????# #????? #?????????? | | ????# ##??????? g #?????????? | | ???? ####??????????g""" #?????????? | | ???? ##???????????????"????????????? | | ???? ###??????????????????????????????? | | ?????# ### ##?????????????????????????????????? | | ?????##???###???????????????????????????????????? | | ????????????????????????????????????????????????? | | | | | | | | | | | | | | | | | | | | | | | | | | | | | | | +----------------------------------------------------+ Best States ------------- Heat Dissipation 35 Energy Generation 10 Energy Capacity 250 Matter Stores 300 Matter Capacity 300 Sight Range 16 Terrain Scan Density 10 Evasion (%) 40 Targeting Accuracy 5 Recoil Reduction 2 Item Schematics ----------------- None Robot Schematics ------------------ None Fabricated ------------ Nothing Repaired ---------- Nothing Studied --------- None Alien Tech Used ----------------- None Achievements -------------- None Challenges ------------ None Game ------ Seed FieldthrustLobotomyPower Manual? 0 Play Time 00:08:42 Cumulative 207.6 hours Start 2026.04.23 @ 00:11:13 End 2026.04.23 @ 00:21:30 Sessions 1 Manual Loads 0 Difficulty Rogue Special Mode None Game No. 123 Rogue 123 Adventurer 0 Explorer 0 Win Type - Total 7 Types 3/0/2/1/0/0/0/1/0/0 Lore% 65 Gallery% 59 Achievement% 53 Wizard Run 0 Options --------- Layout 2 ASCII 0 Keyboard 1 Movement Arrows Keybinds 0 Fullscreen 2 Font 24/Terminus Map View 50x44 Zoom Use 0% Tactical HUD 1 Map Filters NONE Filters NONE Steam 1 RUN: 258fdfec-5f9f-4137-8e92-6fb8bff3195e